Cogmind - Beta 14 @@@ ROGUE MODE // 2024.08.18 @ 03:34:19 Player: CONM Result: Destroyed by B-86 Titan with Railgun Performance ------------- Evolutions (5) 2500 Regions Visited (11) 2200 Robots Destroyed (54) 270 Value Destroyed (1565) 1565 Prototype IDs (6) 120 Alien Tech Used (0) 0 Bonus (1100) 1100 TOTAL SCORE: 7755 Bonus ------- Follower Combat Kills 177 Met Warlord at Base 500 MAIN.C Attacked Warlord 500 Friendly Fire -77 Cogmind --------- Core Integrity 0/1000 Matter 300/300 Energy 97/100 System Corruption 0% Temperature Cool (11) Movement Core (50) Location -4/Proximity Caves Parts ------- > --- POWER (1) -------- (None) > --- PROPULSION (4) --- (None) > --- UTILITY (8) ------ Advanced Terrain Scan Processor Advanced Melee Analysis Suite Advanced Melee Analysis Suite > --- WEAPON (4) ------- Makeshift Spear > --- INVENTORY (5) ---- Light Fission Core Makeshift Trap Scanner Actuator Array Focal Shield Power Maul Peak State ------------ > --- POWER ------------ Micro Nuclear Core > --- PROPULSION ------- Gravmag System Improved Airjet Linear Gravjet Linear Gravjet > --- UTILITY ---------- Medium Storage Unit Advanced Weight Redist. System Structural Scanner Improved Terrain Scanner Advanced Terrain Scan Processor Hacking Suite Improved System Shield > --- WEAPON ----------- Heavy Flak Cannon Powered Hammer > --- INVENTORY -------- Micro Nuclear Core Carbon-fiber Leg Compact Battery Advanced Sensor Array Seismic Detector Microactuators Actuator Array Advanced ECM Suite Focal Shield Improved Hardlight Generator [Rating: 57] Favorites ----------- Power Ion Engine Engine Ion Engine Power Core Micro Nuclear Core Propulsion Gravmag System Leg Aluminum Leg Wheel Subdweller Monowheel Hover Unit Gravmag System Utility High-capacity Storage Unit Device Seismic Detector Storage High-capacity Storage Unit Processor Advanced Melee Analysis Suite Hackware Improved System Shield Protection Hardened Medium Armor Plating Weapon Advanced Beam Cannon Energy Gun Medium Laser Energy Cannon Advanced Beam Cannon Ballistic Gun Assault Rifle Ballistic Cannon Battle Cannon Launcher Grenade Launcher Special Weapon Welding Torch Impact Weapon Heavy Mace Slashing Weapon Scythe Piercing Weapon Makeshift Spear Special Melee Weapon Improved Datajack Build | -11 -10 -10 -10 -8 -7 -6 -5 -5 -5 -5 -4 ------- Run | Yrd Mat Min Sub Mat Fac Fac Fac Upp Upp War Pro Slots Evolved 10 | . . . . 4 2 2 2 . . . . Power . | . . . . . . . . . . . . Propulsion 2 | . . . . 1 . 1 . . . . . Utility 6 | . . . . 3 . 1 2 . . . . Weapon 2 | . . . . . 2 . . . . . . Parts Attached 124 | 8 3 5 22 4 33 13 15 4 2 14 1 Power 16 | 2 . . 4 . 5 3 . . . 2 . Engine 10 | 2 . . 4 . 3 1 . . . . . Core 6 | . . . . . 2 2 . . . 2 . Reactor . | . . . . . . . . . . . . Propulsion 31 | 2 . 3 8 1 11 1 3 1 . . 1 Treads . | . . . . . . . . . . . . Leg 6 | 2 . 1 1 . . . . 1 . . 1 Wheel 11 | . . 2 7 1 1 . . . . . . Hover 14 | . . . . . 10 1 3 . . . . Flight . | . . . . . . . . . . . . Utility 44 | 2 . 1 3 2 11 7 10 1 2 5 . Device 26 | 1 . . 2 . 6 7 7 1 1 1 . Storage 6 | 1 . 1 . . 2 . 1 . 1 . . Processor 6 | . . . . . 1 . 1 . . 4 . Hackware 2 | . . . . . 1 . 1 . . . . Protection 4 | . . . 1 2 1 . . . . . . Artifact . | . . . . . . . . . . . . Weapon 33 | 2 3 1 7 1 6 2 2 2 . 7 . Energy Gun 1 | 1 . . . . . . . . . . . Energy Cannon 5 | . 2 . 2 . 1 . . . . . . Ballistic Gun 2 | 1 1 . . . . . . . . . . Ballistic Cannon 3 | . . . 2 . . . . 1 . . . Launcher 3 | . . 1 2 . . . . . . . . Special Weapon 1 | . . . 1 . . . . . . . . Impact Weapon 7 | . . . . . 1 1 2 1 . 2 . Slashing Weapon 8 | . . . . 1 3 1 . . . 3 . Piercing Weapon 2 | . . . . . . . . . . 2 . Special Melee Weapon 1 | . . . . . 1 . . . . . . Unidentified Prototypes 6 | . 1 . 1 . 2 . 2 . . . . Corrupted Parts 2 | . . . 2 . . . . . . . . System Corruption 20 | . . . 20 . . . . . . . . Parts Lost 58 | . . . 9 5 11 7 . 14 . 2 10 Power 8 | . . . 2 1 2 1 . 1 . . 1 Propulsion 20 | . . . 4 . 5 3 . 5 . . 3 Utility 16 | . . . 1 2 2 1 . 5 . 2 3 Weapon 14 | . . . 2 2 2 2 . 3 . . 3 Highest Loss Streak 8 | . . . 3 5 3 5 . 8 . 2 5 To Critical Strikes . | . . . . . . . . . . . . Average Slot Usage (%) 76 | . 100 100 81 36 76 74 56 65 20 70 62 Engine 8 | . 14 14 13 4 1 4 . . . 3 . Core 1 | . . . . . 4 1 5 4 . 1 3 Leg 2 | . 28 20 . . . . . . . . . Wheel 6 | . . 7 13 1 . . . . . . . Hover 5 | . . . . . 19 16 9 12 . 9 4 Device 10 | . 14 14 6 5 17 24 18 16 2 3 . Storage 10 | . 14 14 14 5 5 6 5 5 5 3 . Processor 3 | . . . . . 1 . 3 5 5 21 26 Hackware 1 | . . . . . 2 6 6 9 5 5 5 Protection 2 | . . . 3 6 4 . . . . . . Energy Cannon 7 | . 7 15 12 5 1 . . . . . . Ballistic Cannon 6 | . . . 14 5 . . . 3 . . . Launcher 1 | . . 12 1 . . . . . . . . Slashing Weapon 2 | . . . . 1 11 7 . . . 7 8 Peak Build Rating 57 | 7 12 15 20 18 40 42 56 57 16 57 57 Average Rating 22 | 5 8 12 15 12 29 35 35 44 13 48 48 On Entrance 20 | . 7 12 13 14 8 26 22 56 13 14 57 Naked Turns 21 | . . . . 21 . . . . . . . Heaviest Build 71 | 15 19 53 60 71 32 36 24 29 10 19 16 Greatest Support 40 | 20 20 25 40 10 27 24 36 27 3 16 25 Greatest Overweight (x) 23 | . . 2 19 23 8 11 1 5 3 2 5 Average Overweight (x) 1 | . . 1 4 1 . . . . . . . Largest Inventory Capacity 20 | 8 8 20 20 20 10 10 10 10 10 5 5 Average Capacity 14 | 7 8 18 20 15 8 10 10 10 5 5 5 Most Carried 20 | 5 8 19 20 18 10 10 10 10 9 5 5 Average Carried 13 | 2 6 14 18 12 7 9 9 9 5 4 5 Final Capacity 20 | 8 8 20 20 5 10 10 10 10 5 5 5 Final Carried 20 | 5 8 19 20 5 9 10 10 9 5 5 5 Class Distribution -------------------- 72% | Mutant 8% | Gladiator 5% | Derelict-Gladiator 4% | Scavenger-Mutant Dominant Class ---------------- Mutant | -10/Materials Mutant | -10/Mines Mutant | -10/Subcaves Mutant | -8/Materials Mutant | -7/Factory Scavenger-Gladiator | -6/Factory Mutant | -5/Factory Hacker-Assassin | -5/Upper Caves Mutant | -5/Upper Caves Derelict-Gladiator | -5/Warlord Derelict-Gladiator | -4/Proximity Caves Resources | -11 -10 -10 -10 -8 -7 -6 -5 -5 -5 -5 -4 ----------- Run | Yrd Mat Min Sub Mat Fac Fac Fac Upp Upp War Pro Matter Collected 2177 | 227 . 129 752 40 540 149 140 10 35 145 10 Remotely . | . . . . . . . . . . . . Salvage Created 2078 | 45 . 19 440 44 859 234 417 20 . . . Parts 106 | 5 . 1 35 1 47 9 8 . . . . Haulers Intercepted 3 | . . . . . 2 . 1 . . . . Recyclers Shooed 1 | . . . . . . . 1 . . . . Parts Field Recycled . | . . . . . . . . . . . . Retrieved Matter . | . . . . . . . . . . . . Parts Self-Destructed 19 | . . . 16 . . . . 3 . . . Prevented 3 | . . . 1 . . . . 2 . . . Kills | -11 -10 -10 -10 -8 -7 -6 -5 -5 -5 -5 -4 ------- Run | Yrd Mat Min Sub Mat Fac Fac Fac Upp Upp War Pro Combat Hostiles Destroyed 35 | . . 1 18 1 10 4 . 1 . . . Melee 14 | . . . . . 10 4 . . . . . Cannons 15 | . . 1 13 . . . . 1 . . . AOE 4 | . . . 4 . . . . . . . . Classes Destroyed 14 | 1 . 1 3 1 7 . 1 . . . . Worker 3 | . . . . . 2 . 1 . . . . Builder 3 | . . . . . 2 1 . . . . . Tunneler 3 | 2 . . . . . . 1 . . . . Hauler 3 | . . . . . 2 . 1 . . . . Recycler 4 | . . . . . 2 . 2 . . . . Mechanic 1 | . . . . . 1 . . . . . . Operator 1 | . . . . . 1 . . . . . . Watcher 1 | . . . . . . . 1 . . . . Swarmer 7 | . . 1 3 . 2 . . 1 . . . Grunt 9 | . . . . 1 5 3 . . . . . Sentry 1 | . . . 1 . . . . . . . . Programmer 4 | . . . . . 3 1 . . . . . Artisan 1 | . . . 1 . . . . . . . . Subdweller 14 | . . . 14 . . . . . . . . Best Kill Streak 3 | 2 . 1 2 1 3 2 3 1 . . . Combat Bots Only 2 | . . 1 2 1 2 2 . 1 . . . Max Kills in Single Turn 2 | 1 . 1 2 1 1 1 1 1 . . . Gunslinging . | . . . . . . . . . . . . Exploded 2 | . . . 2 . . . . . . . . Melee 1 | . . . . . 1 1 . . . . . Uniques/NPCs Destroyed . | . . . . . . . . . . . . Combat | -11 -10 -10 -10 -8 -7 -6 -5 -5 -5 -5 -4 -------- Run | Yrd Mat Min Sub Mat Fac Fac Fac Upp Upp War Pro Hostile Shots Fired 557 | . 4 10 89 80 132 58 5 95 18 6 60 Missed 191 | . 4 2 35 24 47 11 3 36 11 1 17 Damage Taken 6422 | . . 74 1117 882 1212 778 50 1133 108 117 951 Core 2226 | . . 26 199 384 333 276 23 288 108 46 543 Absorbed by Shields 136 | . . . . . 58 78 . . . . . Core Remaining (%) 51 | 100 . . 10 30 52 67 . . . . . Volleys Fired 92 | 2 . 1 72 15 . . . 2 . . . Largest 2 | 2 . 2 2 2 . . . 1 . . . Hottest 112 | 70 . 98 112 107 . . . 53 . . . Shots Fired 151 | 4 . 2 125 17 1 . . 2 . . . Gun 4 | 4 . . . . . . . . . . . Cannon 123 | . . 1 102 17 1 . . 2 . . . Launcher 24 | . . 1 23 . . . . . . . . Special . | . . . . . . . . . . . . Kinetic 71 | 2 . . 65 2 . . . 2 . . . Thermal 56 | 2 . 1 37 15 1 . . . . . . Explosive 14 | . . 1 13 . . . . . . . . Electromagnetic 10 | . . . 10 . . . . . . . . Robot Hit Streak 15 | 1 . 2 15 10 . . . 2 . . . Robot Miss Streak 11 | 1 . . 5 2 . . . 11 . . . Penetration Max . | . . . . . . . . . . . . Secondary Targets . | . . . . . . . . . . . . Shots Hit Robots 153 | 2 . 1 66 12 49 14 8 1 . . . Core Hits 75 | 2 . 1 42 1 19 7 2 1 . . . Critical Kills 1 | . . . 1 . . . . . . . . Critical Parts Destroyed 2 | . . . . . . . 2 . . . . Critical Strikes 11 | . . . 2 . 5 2 2 . . . . Meltdown 1 | . . . 1 . . . . . . . . Blast 1 | . . . 1 . . . . . . . . Smash 2 | . . . . . . . 2 . . . . Sever 7 | . . . . . 5 2 . . . . . Melee Attacks 138 | . . . . 2 88 27 19 . . 2 . Impact 35 | . . . . . 5 11 19 . . . . Slashing 101 | . . . . 2 82 16 . . . 1 . Piercing 1 | . . . . . . . . . . 1 . Sneak Attacks 18 | . . . . . 11 1 6 . . . . Combat Hostiles . | . . . . . . . . . . . . Follow-up Attacks 12 | . . . . . 7 5 . . . . . Damage Inflicted 5126 | 25 . 21 1831 254 1908 528 545 14 . . . Guns 25 | 25 . . . . . . . . . . . Cannons 1562 | . . 21 1273 254 . . . 14 . . . Explosions 558 | . . . 558 . . . . . . . . Melee 2981 | . . . . . 1908 528 545 . . . . Ramming . | . . . . . . . . . . . . Kinetic 977 | 13 . . 922 28 . . . 14 . . . Thermal 618 | 12 . 21 359 226 . . . . . . . Explosive 414 | . . . 414 . . . . . . . . Electromagnetic 136 | . . . 136 . . . . . . . . Impact 802 | . . . . . 79 178 545 . . . . Slashing 2179 | . . . . . 1829 350 . . . . . Piercing . | . . . . . . . . . . . . Highest Corruption 21 | . . . 21 . 6 5 . 7 7 7 . Average Corruption 14 | . . . 18 . 2 4 . 7 7 7 . Corruption Purged . | . . . . . . . . . . . . Corruption Blocked . | . . . . . . . . . . . . Effects 211 | . . . 171 . 29 2 . . 8 1 . Message Errors 50 | . . . 37 . 9 . . . 3 1 . Matter Fused 51 | . . . 41 . 6 1 . . 3 . . Heat Flow Errors 29 | . . . 25 . 4 . . . . . . Energy Discharges 22 | . . . 20 . 2 . . . . . . Parts Rejected 1 | . . . . . 1 . . . . . . Data Loss (minor) 24 | . . . 18 . 3 1 . . 2 . . Data Loss (major) 12 | . . . 10 . 2 . . . . . . Misfires 9 | . . . 8 . 1 . . . . . . Alerts 7 | . . . 6 . 1 . . . . . . Misdirections 1 | . . . 1 . . . . . . . . Weapon Failures 5 | . . . 5 . . . . . . . . Overload Shots . | . . . . . . . . . . . . Overflow Damage 579 | . . . 19 . 197 80 283 . . . . Projectiles . | . . . . . . . . . . . . Explosions 19 | . . . 19 . . . . . . . . Melee 560 | . . . . . 197 80 283 . . . . Knockbacks 18 | . . . 14 . . 1 3 . . . . Impact 4 | . . . . . . 1 3 . . . . Kinetic 13 | . . . 13 . . . . . . . . Secondary 1 | . . . 1 . . . . . . . . Self-Inflicted Damage 73 | . . . 73 . . . . . . . . Shots 4 | . . . 4 . . . . . . . . Rammed 1 | . . . . 1 . . . . . . . Targets Rammed 1 | . . . . 1 . . . . . . . Kicked . | . . . . . . . . . . . . Crushed . | . . . . . . . . . . . . Highest Temperature 327 | 9 . 36 246 216 174 . . . . . 327 Average Temperature 92 | 6 . 22 91 110 69 . . . . . 187 Received Heat Transfer 1932 | . . 18 126 495 253 303 . 252 63 . 422 Effects 1 | . . . . 1 . . . . . . . Interference 1 | . . . . 1 . . . . . . . Siege Activations . | . . . . . . . . . . . . Robots Corrupted 3 | . . . . . . 1 2 . . . . Combat Hostiles . | . . . . . . . . . . . . Parts Fried 12 | . . . . . . 1 11 . . . . Impact Corruptions 9 | . . . . . . 3 6 . . . . Robots Melted 2 | . . . 1 1 . . . . . . . Combat Hostiles 2 | . . . 1 1 . . . . . . . Parts Melted 1 | . . . 1 . . . . . . . . Heat Transferred 1160 | 37 . 37 679 407 . . . . . . . Parts Sabotaged . | . . . . . . . . . . . . Parts Stolen . | . . . . . . . . . . . . Parts Stripped . | . . . . . . . . . . . . Power Chain Reactions 1 | . . . 1 . . . . . . . . Alert | -11 -10 -10 -10 -8 -7 -6 -5 -5 -5 -5 -4 ------- Run | Yrd Mat Min Sub Mat Fac Fac Fac Upp Upp War Pro Peak Influence 221 | 10 6 209 . 62 221 179 130 . . . . Initial 113 | . 6 1 . . 28 113 . . . . . Average 59 | 1 6 45 . 9 74 137 40 . . . . Maximum Alert Level 1 | . . 1 . . 1 . . . . . . Low Security (%) 95 | 100 100 87 . 100 97 100 100 . . . . Level 1 4 | . . 12 . . 2 . . . . . . Level 2 . | . . . . . . . . . . . . Level 3 . | . . . . . . . . . . . . Level 4 . | . . . . . . . . . . . . Level 5 . | . . . . . . . . . . . . High Security . | . . . . . . . . . . . . Max Security . | . . . . . . . . . . . . Squads Dispatched 13 | . . 2 . . 7 1 3 . . . . Investigation 7 | . . 1 . . 3 1 2 . . . . Extermination 3 | . . . . . 3 . . . . . . Reinforcement 1 | . . . . . 1 . . . . . . Assault 1 | . . 1 . . . . . . . . . Garrison 1 | . . . . . . . 1 . . . . Intercept . | . . . . . . . . . . . . Searches Triggered . | . . . . . . . . . . . . Construction Impeded . | . . . . . . . . . . . . Haulers Reinforced . | . . . . . . . . . . . . Active Scanning Responses . | . . . . . . . . . . . . Cargo Convoy Interrupts . | . . . . . . . . . . . . Stealth | -11 -10 -10 -10 -8 -7 -6 -5 -5 -5 -5 -4 --------- Run | Yrd Mat Min Sub Mat Fac Fac Fac Upp Upp War Pro Distress Signals 4 | . 1 . . . 1 . 1 . . 1 . Communications Jammed . | . . . . . . . . . . . . Distress Signals . | . . . . . . . . . . . . Times Spotted 141 | . 2 6 18 7 29 5 8 22 5 36 3 Peak Tracking Total 15 | . 2 3 4 7 4 3 5 7 4 15 2 Tactical Retreats 21 | . . . . 1 7 1 3 7 2 . . Traps | -11 -10 -10 -10 -8 -7 -6 -5 -5 -5 -5 -4 ------- Run | Yrd Mat Min Sub Mat Fac Fac Fac Upp Upp War Pro Traps Triggered 5 | . . . 1 . 3 1 . . . . . Indirectly . | . . . . . . . . . . . . Trap Hack Attempts . | . . . . . . . . . . . . Triggered . | . . . . . . . . . . . . Disarmed . | . . . . . . . . . . . . Reprogrammed . | . . . . . . . . . . . . Reused . | . . . . . . . . . . . . Traps Extracted . | . . . . . . . . . . . . Installed . | . . . . . . . . . . . . Triggered 10 | . . . . . . . . 3 . 7 . Machines | -11 -10 -10 -10 -8 -7 -6 -5 -5 -5 -5 -4 ---------- Run | Yrd Mat Min Sub Mat Fac Fac Fac Upp Upp War Pro Machines Disabled . | . . . . . . . . . . . . Max in Single Turn . | . . . . . . . . . . . . Garrison Access 1 | . . . . . 1 . . . . . . Machines Repaired . | . . . . . . . . . . . . Machines Dismantled . | . . . . . . . . . . . . Machines Sabotaged . | . . . . . . . . . . . . Overloaded Fab Kills . | . . . . . . . . . . . . Hacking | -11 -10 -10 -10 -8 -7 -6 -5 -5 -5 -5 -4 --------- Run | Yrd Mat Min Sub Mat Fac Fac Fac Upp Upp War Pro Machines Accessed 28 | . . 1 1 . 11 2 6 . 1 6 . Terminals 9 | . . . . . 3 1 4 . 1 . . Fabricators 5 | . . . . . 3 . 2 . . . . Repair Stations 1 | . . . . . 1 . . . . . . Recycling Units 1 | . . . . . 1 . . . . . . Scanalyzers 2 | . . . . . 1 1 . . . . . Garrison Access 2 | . . . . . 2 . . . . . . Total Hacks 75 | . . 1 3 . 25 8 18 . 1 19 . Successful 53 | . . 1 3 . 14 2 13 . 1 19 . Failed 22 | . . . . . 11 6 5 . . . . Catastrophic 6 | . . . . . 3 1 2 . . . . Database Lockouts . | . . . . . . . . . . . . Manual 12 | . . . . . 2 2 8 . . . . Terminals 22 | . . . . . 6 2 13 . 1 . . Fabricators 10 | . . . . . 5 . 5 . . . . Repair Stations 3 | . . . . . 3 . . . . . . Recycling Units 2 | . . . . . 2 . . . . . . Scanalyzers 11 | . . . . . 5 6 . . . . . Garrison Access 4 | . . . . . 4 . . . . . . Terminal Hacks 31 | . . 1 3 . 1 . 6 . 1 19 . Record 25 | . . . 3 . . . 2 . 1 19 . Open Door 1 | . . 1 . . . . . . . . . Branch Access Points 1 | . . . . . 1 . . . . . . Terminal Index 1 | . . . . . . . 1 . . . . Garrison Index 1 | . . . . . . . 1 . . . . Locate Traps 1 | . . . . . . . 1 . . . . Registered Components 1 | . . . . . . . 1 . . . . Fabricator Hacks 8 | . . . . . 4 . 4 . . . . Load Schematic 4 | . . . . . 2 . 2 . . . . Build 4 | . . . . . 2 . 2 . . . . Repair Station Hacks 2 | . . . . . 2 . . . . . . Scan Component 1 | . . . . . 1 . . . . . . Repair 1 | . . . . . 1 . . . . . . Recycling Unit Hacks 1 | . . . . . 1 . . . . . . Report Inventory 1 | . . . . . 1 . . . . . . Scanalyzer 6 | . . . . . 4 2 . . . . . Insert Component 3 | . . . . . 2 1 . . . . . Analyze 3 | . . . . . 2 1 . . . . . Garrison Access Hacks 1 | . . . . . 1 . . . . . . Seal Access 1 | . . . . . 1 . . . . . . Unauthorized Hacks 4 | . . . . . 1 . 3 . . . . Terminals 4 | . . . . . 1 . 3 . . . . Botnet 4 | . . . . . 1 . 3 . . . . Fabricators . | . . . . . . . . . . . . Repair Stations . | . . . . . . . . . . . . Recycling Units . | . . . . . . . . . . . . Scanalyzers . | . . . . . . . . . . . . Garrison Access . | . . . . . . . . . . . . Data Cores Recovered . | . . . . . . . . . . . . Used . | . . . . . . . . . . . . Hacking Detections 17 | . . . . . 9 2 6 . . . . Full Trace Events 6 | . . . . . 3 1 2 . . . . Feedback Events 1 | . . . . . . 1 . . . . . Corruption 1 | . . . . . . 1 . . . . . Feedback Blocked . | . . . . . . . . . . . . Robot Schematics Acquired . | . . . . . . . . . . . . Robots Built . | . . . . . . . . . . . . Authchips . | . . . . . . . . . . . . Time . | . . . . . . . . . . . . Total Robot Build Rating . | . . . . . . . . . . . . Part Schematics Acquired 3 | . . . . . 2 1 . . . . . Parts Built 7 | . . . . . 4 . 3 . . . . Authchips . | . . . . . . . . . . . . Time 249 | . . . . . 146 . 103 . . . . Total Part Build Rating 22 | . . . . . 12 . 10 . . . . Parts Repaired 1 | . . . . . 1 . . . . . . Time 26 | . . . . . 26 . . . . . . Parts Recycled . | . . . . . . . . . . . . Recycled Matter . | . . . . . . . . . . . . Retrieved Matter . | . . . . . . . . . . . . Retrieved Components . | . . . . . . . . . . . . Parts Scanalyzed 3 | . . . . . 2 1 . . . . . Part Schematics Acquired 3 | . . . . . 2 1 . . . . . Parts Damaged 1 | . . . . . 1 . . . . . . Bothacking | -11 -10 -10 -10 -8 -7 -6 -5 -5 -5 -5 -4 ------------ Run | Yrd Mat Min Sub Mat Fac Fac Fac Upp Upp War Pro Used RIF Installer . | . . . . . . . . . . . . Robots Hacked 1 | . . . . . 1 . . . . . . Non-combat 1 | . . . . . 1 . . . . . . Combat . | . . . . . . . . . . . . Robot Hacks Applied 1 | . . . . . 1 . . . . . . parse_system 1 | . . . . . 1 . . . . . . Relay Couplers Released . | . . . . . . . . . . . . Fabnet Peak Effective % . | . . . . . . . . . . . . Robots Rewired 1 | . . . . . . 1 . . . . . Allies Hacked . | . . . . . . . . . . . . Hacks Repelled . | . . . . . . . . . . . . Allies | -11 -10 -10 -10 -8 -7 -6 -5 -5 -5 -5 -4 -------- Run | Yrd Mat Min Sub Mat Fac Fac Fac Upp Upp War Pro Total Allies 3 | . . 1 1 . . 1 . . . . . Largest Group 1 | . . 1 1 1 . 1 . . . . . Highest-Rated Group 31 | . . 31 31 19 . 20 . . . . . Highest-Rated Ally 31 | . . 31 31 19 . 20 . . . . . Total Orders . | . . . . . . . . . . . . Ally Attacks 21 | . . 13 6 2 . . . . . . . Total Damage 357 | . . 235 104 18 . . . . . . . Kills 7 | . . 7 . . . . . . . . . Allies Corrupted . | . . . . . . . . . . . . Allies Melted 1 | . . . . . . . . . . 1 . Intel | -11 -10 -10 -10 -8 -7 -6 -5 -5 -5 -5 -4 ------- Run | Yrd Mat Min Sub Mat Fac Fac Fac Upp Upp War Pro Robot Analysis Total . | . . . . . . . . . . . . Derelict Logs Recovered 4 | . . 1 1 . . . . . 2 . . Drone Launches . | . . . . . . . . . . . . Drone Recoveries . | . . . . . . . . . . . . Exploration | -11 -10 -10 -10 -8 -7 -6 -5 -5 -5 -5 -4 ------------- Run | Yrd Mat Min Sub Mat Fac Fac Fac Upp Upp War Pro Turns Passed 10276 | 123 106 1189 4428 243 1380 413 707 311 336 804 236 Spaces Moved 7403 | 89 79 415 1953 135 1493 432 892 325 577 824 189 Core 1139 | 7 . . 201 113 2 2 . 16 577 179 42 Treads . | . . . . . . . . . . . . Legs 595 | 82 79 401 . . . . . 12 . . 21 Wheels 1811 | . . 14 1752 22 23 . . . . . . Hover 3858 | . . . . . 1468 430 892 297 . 645 126 Flight . | . . . . . . . . . . . . Fastest Speed 42 | 50 120 110 107 50 45 48 42 51 50 50 76 Average Speed 115 | 114 120 201 213 140 56 65 61 92 56 72 124 Slowest Speed 1200 | 120 120 260 1000 1200 450 600 120 300 200 156 300 Overloaded Moves . | . . . . . . . . . . . . Propulsion Burnouts . | . . . . . . . . . . . . Robots Hopped . | . . . . . . . . . . . . Cave-ins Triggered . | . . . . . . . . . . . . Exploration Rate (%) 42 | 4 21 90 76 18 39 11 20 64 73 79 12 Regions Visited 11 Branch Regions 6 Pre-discovered Areas 3 | . . . 1 . . . . . 2 . . Known Exits Taken 1 | . . . . 1 . . . . . . . Unknown Exits Taken 10 | 1 1 1 1 . 1 1 1 1 1 1 . Scrap Searched 17 | . . 2 12 . . . . 1 1 . 1 Spaces Dug 38 | . . . . 2 21 6 8 . . 1 . Terrain Destroyed 101 | . . 7 56 2 21 6 8 . . 1 . Melee 38 | . . . . 2 21 6 8 . . 1 . Projectile . | . . . . . . . . . . . . AOE 63 | . . 7 56 . . . . . . . . Terrain Rammed . | . . . . . . . . . . . . Walls Destroyed . | . . . . . . . . . . . . Machines Disabled . | . . . . . . . . . . . . Actions | -11 -10 -10 -10 -8 -7 -6 -5 -5 -5 -5 -4 --------- Run | Yrd Mat Min Sub Mat Fac Fac Fac Upp Upp War Pro Total 8821 | 102 90 765 2088 162 1926 534 1015 333 587 1029 190 Wait 942 | . . 334 16 . 276 51 82 3 . 180 . Move 7392 | 88 78 414 1952 134 1492 431 891 324 576 823 189 Hop . | . . . . . . . . . . . . Pick Up 69 | 4 6 10 13 3 19 8 2 . 3 1 . Fast Attach 50 | 7 . . 4 1 12 4 8 2 . 11 1 Attach 41 | . . . 8 3 15 6 5 1 2 1 . Detach 14 | . . . . . 6 4 3 . . 1 . Swap 33 | 1 3 5 10 . 6 3 2 1 . 2 . Drop 53 | . 3 1 13 2 10 6 3 . 6 9 . Fire 92 | 2 . 1 72 15 . . . 2 . . . Melee 118 | . . . . 2 77 19 19 . . 1 . Ram 1 | . . . . 1 . . . . . . . Kick . | . . . . . . . . . . . . Crush . | . . . . . . . . . . . . Escape Stasis 13 | . . . . . 13 . . . . . . Rewire 2 | . . . . . . 2 . . . . . Trap . | . . . . . . . . . . . . Miscellaneous 1 | . . . . 1 . . . . . . . Route ------- -11/Scrapyard -10/Materials -10/Mines -10/Subcaves -8/Materials (discovered 2 exits: *Fac x2) -7/Factory (discovered 4 exits: *Fac x2 / Low x2) -6/Factory -5/Factory -5/Upper Caves -5/Upper Caves -5/Warlord -4/Proximity Caves History --------- Turn | Location | Event 5 | -11/Scrapyard | Discovered new exit (range 16) 124 | -11/Scrapyard | Entered Materials 200 | -10/Materials | Discovered new exit (range 15) 230 | -10/Materials | Entered Mines 231 | -10/Mines | Met a Derelict testing a Signal Generator 244 | -10/Mines | Learned Materials terminal intel 311 | -10/Mines | Build established: Mutant 408 | -10/Mines | Found a damaged Exp. Sensor Array with a note attached 781 | -10/Mines | Met a Derelict shopkeep closing up shop 1390 | -10/Mines | Discovered new exit (range 6) 1419 | -10/Mines | Entered Subcaves 1419 | -10/Subcaves | Accompanied by 1 ally 1862 | -10/Subcaves | Core integrity fell below 50% 1960 | -10/Subcaves | A swath of the cavern ceiling suddenly collapsed 2025 | -10/Subcaves | System corruption reached 10% 2352 | -10/Subcaves | Shifting Twisted Machinery released Sub. Laser 2355 | -10/Subcaves | Shifting Twisted Machinery released Flamer 2482 | -10/Subcaves | Core integrity fell below 20% 2772 | -10/Subcaves | Lost 3 parts (1p2n) 3227 | -10/Subcaves | A swath of the cavern ceiling suddenly collapsed 3726 | -10/Subcaves | Disturbed a concealed Subdweller 3926 | -10/Subcaves | Learned location of Zion (-6) 3926 | -10/Subcaves | Met a Zionite searching for "candidates" 4508 | -10/Subcaves | Visited Clippyterm 4538 | -10/Subcaves | Learned Factory garrison access intel 4838 | -10/Subcaves | Learned location of 1 exit from Materials 4848 | -10/Subcaves | Visited triangular shrine 4908 | -10/Subcaves | Found Prototype Device 4909 | -10/Subcaves | Identified V3-11A's Pendant 4914 | -10/Subcaves | Befriended Subdweller 5776 | -10/Subcaves | Shifting Twisted Machinery released Sub. Machine Gun 5802 | -10/Subcaves | Discovered new exit (range 6) 5813 | -10/Subcaves | Shifting Twisted Machinery released Sub. Optics 5847 | -10/Subcaves | Entered Materials 5847 | -8/Materials | Accompanied by 1 ally 5847 | -8/Materials | Evolved 4 slots: Propulsion x1, Utility x3 5848 | -8/Materials | Identified exit to Factory 5849 | -8/Materials | Loaded intel: 12 terminal locations 6009 | -8/Materials | Released all parts (1) 6036 | -8/Materials | Lost 5 parts (1p2u2w) 6040 | -8/Materials | Core integrity fell below 50% 6069 | -8/Materials | Discovered exit to Factory (range 10) 6090 | -8/Materials | Entered Factory 6090 | -7/Factory | Evolved 2 slots: Weapon x2 6091 | -7/Factory | Loaded intel: 4 garrison access locations 6279 | -7/Factory | Identified exit to Lower Caves 6468 | -7/Factory | Repaired Broken Scythe 6700 | -7/Factory | Fabricated Scythe? 6976 | -7/Factory | Fabricated Scythe? 7138 | -7/Factory | Build established: Gladiator 7228 | -7/Factory | Lost 3 parts (1p1u1w) 7318 | -7/Factory | Discovered new exit (range 9) 7393 | -7/Factory | Lost 3 parts (2n1w) 7401 | -7/Factory | Discovered new exit (range 7) 7470 | -7/Factory | Entered another Factory area 7470 | -6/Factory | Evolved 2 slots: Propulsion x1, Utility x1 7609 | -6/Factory | Discovered new exit (range 16) 7824 | -6/Factory | Lost 5 parts (1p3n1u) 7883 | -6/Factory | Entered another Factory area 7883 | -5/Factory | Evolved 2 slots: Utility x2 8134 | -5/Factory | Build established: Mutant 8252 | -5/Factory | Fabricated Imp. Airjet? 8405 | -5/Factory | Garrison activated, responded to threat 8514 | -5/Factory | Fabricated Scythe? 8550 | -5/Factory | Discovered new exit (range 8) 8590 | -5/Factory | Entered Upper Caves 8713 | -5/Upper Caves | Attracted the attention of an 0b10 outpost 8776 | -5/Upper Caves | Lost 3 parts (3n) 8881 | -5/Upper Caves | Discovered new exit (range 12) 8901 | -5/Upper Caves | Entered another Upper Caves area 8922 | -5/Upper Caves | Lost 8 parts (1p2n3u2w) 9147 | -5/Upper Caves | Learned location of Warlord (-5) 9189 | -5/Upper Caves | Spotted B-75 Beast 9208 | -5/Upper Caves | Learned location of Armory (-3) 9230 | -5/Upper Caves | Discovered new exit (range 14) 9237 | -5/Upper Caves | Entered Warlord 9265 | -5/Warlord | System corruption cleaned by Quarantine Array 9546 | -5/Warlord | Learned Armory trap positions 9546 | -5/Warlord | Learned Quarantine trap positions 9547 | -5/Warlord | Learned 4 Armory zone layouts 9548 | -5/Warlord | Learned Armory fabricator intel 9548 | -5/Warlord | Learned Armory recycling unit intel 9548 | -5/Warlord | Learned Research terminal intel 9548 | -5/Warlord | Learned Research recycling unit intel 9628 | -5/Warlord | Warlord's base attacked by MAIN.C 9637 | -5/Warlord | Met Warlord 9834 | -5/Warlord | Warlord forces counterattacked 9836 | -5/Warlord | Spotted B-75 Beast 9873 | -5/Warlord | Spotted B-86 Titan 9900 | -5/Warlord | Build established: Derelict-Gladiator 9924 | -5/Warlord | Lost 7 allies 9934 | -5/Warlord | Spotted B-86 Titan 9943 | -5/Warlord | Spotted Striker 9944 | -5/Warlord | Spotted Executioner 9945 | -5/Warlord | Spotted B-75 Beast 9946 | -5/Warlord | Spotted Executioner 9989 | -5/Warlord | Lost 11 allies 10028 | -5/Warlord | Spotted Striker 10032 | -5/Warlord | Discovered new exit (range 14) 10041 | -5/Warlord | Entered Proximity Caves 10043 | -4/Proximity Caves | Spotter reported a threat 10044 | -4/Proximity Caves | Spotter reported a threat 10046 | -4/Proximity Caves | Spotted B-86 Titan 10068 | -4/Proximity Caves | Lost 7 allies 10095 | -4/Proximity Caves | Core integrity fell below 50% 10198 | -4/Proximity Caves | Core integrity fell below 20% 10224 | -4/Proximity Caves | Lost 4 parts (1p1n1u1w) 10277 | -4/Proximity Caves | Destroyed by B-86 Titan with Railgun Last Messages --------------- 10187_ Mic. Nuclear Core destroyed. 10187_ Penetrated by Slug. 10187_ Adv. Melee Analysis Suite destroyed. 10192_ B-86 Titan activates siege mode. 10193_ Ripper destroyed. 10197_ Penetrated by Slug. 10197_ Slug penetrates Wall. 10251_ Acquired Myomer Leg. 10253_ Acquired 10 matter. 10264_ Ripper destroyed. 10264_ Mak. Spear destroyed. 10268_ Knocked back. 10271_ Imp. System Shield destroyed. 10271_ Enh. Optical Array destroyed. 10271_ Critical hit (Blast). 10271_ Penetrated by Slug. 10271_ Slug penetrates Wall. 10276_ B-86 Titan activates siege mode. 10277_ Myomer Leg destroyed. 10277_ Knocked back. Map ----- +----------------------------------------------------+ | ?????????????????????????????????????????????????? | | ?????????????????????????????????????????????????? | | ?????????????????????????????????????????????????? | | ?????????????????????????????????????????????????? | | ?????????????????????????????????????????????????? | | ?????????????????????????????????????????????????? | | ??????######?????????????????????????????????????? | | ?????## ##????????????????????????????????????? | | ????## #?????###????????????????????????????? | | ?#### #????## ####?????????????????????????? | | ?# #####????# ##????????????????????????? | | ?## ##???????## ###??????????????????????? | | ??## % #????????# #??????????????????????? | | ???#! = #????????# ##??????????????????????? | | ???## ##???##### ##???????????????????????? | | ???## ##### ##????????????????????????? | | ??## #?????????????????????????? | | ??# # ##????????????????????????? | | ??## ####### #????????????????????????? | | ???## #?????#" ##????????????????????????? | | ????# #????##" % #?????????#???????????????? | | ????# #????# " ## #??????? #???????????????? | | ????# #????### % ## #?????? #????????????????? | | ????# #??????#; ####????? #?????????????????? | | ????# #??????####;BB;;;##### #?????????????????? | | ??### ############BB @ #?????????????????? | | ??# #?????????????????? | | ??# % % #?????????????????? | | ??## #####;;##### #?????????????????? | | ???# ##??##""#### ##?????????????????? | | ???# #???# ;##??????????????????? | | ???# ##??# % ###???????????????????? | | ???## #??# #;; #?????????????????????? | | ????## #### ; ; #????????????????????? | | ?????# ##" % # ## #??????????????????? | | ????## ### ; ## #### ??????????????? | | ??### #?# "#?# #??? ? #?????????????? | | ?## #?# %"#?# #??? ?????????????????? | | ?# ##### ##?####??? ????????????????? | | ?# ####" ###??????## ????????????????? | | ?## # ##??????? ?????????????????? | | ??############ #???????? ????????????????????? | | ?????????????# #?????????????????????????????? | | ?????????????## # #?????????????????????????????? | | ??????????????######?????????????????????????????? | | ?????????????????????????????????????????????????? | | ?????????????????????????????????????????????????? | | ?????????????????????????????????????????????????? | | ?????????????????????????????????????????????????? | | ?????????????????????????????????????????????????? | +----------------------------------------------------+ Best States ------------- Heat Dissipation 40 Energy Generation 18 Energy Capacity 360 Matter Stores 300 Matter Capacity 300 Sight Range 22 Robot Scan Range 16 Terrain Scan Range 16 Terrain Scan Density 210 Additional Mass Support 9 Armor Coverage 800 Melee Speed Boost 20 Evasion (%) 56 Melee Accuracy 24 Core Analysis 6 Offensive Hacking 10 Defensive Hacking 12 Item Schematics ----------------- Imp. Airjet | -7/Factory | Scanalyzed Scythe | -7/Factory | Scanalyzed Hvy. Mace | -6/Factory | Scanalyzed Robot Schematics ------------------ None Fabricated ------------ Scythe | x2 | -7/Factory Scythe | x2 | -7/Factory Imp. Airjet | x1 | -5/Factory Scythe | x2 | -5/Factory Alien Tech Used ----------------- None Achievements -------------- None Challenges ------------ None Game ------ Seed BurstKineticMultirail Manual? 0 Play Time 02:25:21 Cumulative 58.5 hours Start 2024.08.13 @ 22:45:07 End 2024.08.18 @ 03:34:19 Sessions 1 Manual Loads 0 Difficulty Rogue Special Mode None Game No. 81 Rogue 81 Adventurer 0 Explorer 0 Win Type - Total 0 Types 0/0/0/0/0/0/0/0/0 Lore% 24 Gallery% 33 Achievement% 37 Wizard Run 0 Options --------- Layout 0 ASCII 0 Keyboard 0 Movement Arrows Keybinds 0 Fullscreen 1 Font 20/SmallcapsGlow Map View 66x50 Zoom Use 4% Tactical HUD 1 Map Filters NONE Filters NONE Steam 1 RUN: 8ab911f6-6f11-453b-920f-1e978b491416